{"text_format":"1","workbook":"xlsx","n_sheets":7,"sheets":["Accueil","Enregistrement","Clients","Saisie de données","Planification","Feuil2","Recherche de nom"],"not_rendered":{"charts":1,"images":0,"macros":1,"external_links":0,"defined_names":6,"comments":0,"pivot_tables":0},"unopened":[],"bounds":{"document_bytes":16777216,"sheet_cells":100000,"rows_first":2000,"rows_last":500,"rows_between":2000,"halvings":0,"cell_chars":16384,"cell_head_chars":4096},"cells_cut":0,"cells_raw":0,"read":"whole","date_system":"1900"}

{"sheet":"Accueil","index":0,"n_rows":0,"n_cols":0,"rows_kept":0,"cut":false,"hidden":false,"merged":[]}

{"sheet":"Enregistrement","index":1,"n_rows":13,"n_cols":4,"rows_kept":13,"cut":false,"hidden":false,"merged":[[12,4,12,8],[5,4,5,8],[6,4,6,8],[7,4,7,8],[9,4,9,8],[10,4,10,8],[11,4,11,8],[8,4,8,8]]}
[]
[]
[]
[]
[]
[null,null,null,"Nom(s) et prénom(s) du client"]
[null,null,null,"Numéro de téléphone"]
[null,null,null,"Sexe"]
[null,null,null,"Adresse"]
[null,null,null,"Type de commande"]
[null,null,null,"Montant"]
[null,null,null,"Date de dépôt"]
[null,null,null,"Date de retrait"]

{"sheet":"Clients","index":2,"n_rows":8,"n_cols":628,"rows_kept":8,"cut":false,"hidden":false,"merged":[]}
["N°","Nom(s) et prénom(s) de Client","Numero","Sexe","Adresse","Type de commande","Montant","Date de dépôt","Date de retrait","Avertissement","Etat de la commande","Nombre de commande",null,null,null,null,null,null,null,null,null,null,null,null,null,null,null,null,null,null,null,null,null,null,null,null,null,null,null,null,null,null,null,null,null,null,null,null,null,null,null,null,null,null,null,null,null,null,null,null,null,null,null,null,null,null,null,null,null,null,null,null,null,null,null,null,null,null,null,null,null,null,null,null,null,null,null,null,null,null,null,null,null,null,null,null,null,null,null,null,null,null,null,null,null,null,null,null,null,null,null,null,null,null,null,null,null,null,null,null,null,null,null,null,null,null,null,null,null,null,null,null,null,null,null,null,null,null,null,null,null,null,null,null,null,null,null,null,null,null,null,null,null,null,null,null,null,null,null,null,null,null,null,null,null,null,null,null,null,null,null,null,null,null,null,null,null,null,null,null,null,null,null,null,null,null,null,null,null,null,null,null,null,null,null,null,null,null,null,null,null,null,null,null,null,null,null,null,null,null,null,null,null,null,null,null,null,null,null,null,null,null,null,null,null,null,null,null,null,null,null,null,null,null,null,null,null,null,null,null,null,null,null,null,null,null,null,null,null,null,null,null,null,null,null,null,null,null,null,null,null,null,null,null,null,null,null,null,null,null,null,null,null,null,null,null,null,null,null,null,null,null,null,null,null,null,null,null,null,null,null,null,null,null,null,null,null,null,null,null,null,null,null,null,null,null,null,null,null,null,null,null,null,null,null,null,null,null,null,null,null,null,null,null,null,null,null,null,null,null,null,null,null,null,null,null,null,null,null,null,null,null,null,null,null,null,null,null,null,null,null,null,null,null,null,null,null,null,null,null,null,null,null,null,null,null,null,null,null,null,null,null,null,null,null,null,null,null,null,null,null,null,null,null,null,null,null,null,null,null,null,null,null,null,null,null,null,null,null,null,null,null,null,null,null,null,null,null,null,null,null,null,null,null,null,null,null,null,null,null,null,null,null,null,null,null,null,null,null,null,null,null,null,null,null,null,null,null,null,null,null,null,null,null,null,null,null,null,null,null,null,null,null,null,null,null,null,null,null,null,null,null,null,null,null,null,null,null,null,null,null,null,null,null,null,null,null,null,null,null,null,null,null,null,null,null,null,null,null,null,null,null,null,null,null,null,null,null,null,null,null,null,null,null,null,null,null,null,null,null,null,null,null,null,null,null,null,null,null,null,null,null,null,null,null,null,null,null,null,null,null,null,null,null,null,null,null,null,null,null,null,null,null,null,null,null,null,null,null,null,null,null,null,null,null,null,null,null,null,null,null,null,null,null,null,null,null,null,null,null,null,null,null,null,null,null,null,null,null,null,null,null,null,null,null,null,null,null,null,null,null,null,null,null,null,null,null,null,null,null,null,null,null,null,null,null,null,null,null,null,null,null,null,null,null,null,null,null,null,null,null,null,null,null,null,null,null,{"$f":"COUNTA(A:A)","v":7}]
[6,"SABINE",67567737,"F","FIDJROSSE","CHEMISE",15000,"2019-08-08","2019-08-15",{"$f":"_xlfn.DAYS(I2,H2)","v":7},{"$f":"IF(J2<=0,\"Retiré\",\"En cours\")","v":"En cours"}]
[5,"MIKEL RICK",62617723,"M","FIDJROSSE","CHEMISE",60000,"2019-08-09","2019-08-13",{"$f":"_xlfn.DAYS(I3,H3)","v":4},"En cours"]
[4,"KARL ",97234567,"M","VEDOKO","robe ",35000,"2019-02-10","2019-03-15",{"$f":"_xlfn.DAYS(I4,H4)","v":33},"En cours"]
[3,"NZASI ",64567893,"M","AGLA","Pantalon",20000,"2019-02-25","2019-02-10",-15,"Retiré"]
[2,"SAMBA ",69195927,"M","AKPAKPA","Chemise",500000,"2019-02-05","2019-03-05",28,"En cours"]
[1,"JULIVER",64742255,"F","FIDJROSSE","CHAUSSURE",40000,"2019-08-05","2019-08-08",3,"En cours"]
[null,null,null,null,null,null,null,null,null,0,"Retiré"]

{"sheet":"Saisie de données","index":3,"n_rows":16,"n_cols":4,"rows_kept":16,"cut":false,"hidden":false,"merged":[]}
[null,"SAISIE DE DONNÉES"]
[]
[null,"DATE et HEURE","QUI","TÂCHE"]
[null,"2012-07-02T08:00:00","Anna","Rendez-vous médical"]
[null,"2012-07-02T18:00:00","Maurice","Prendre médicament"]
[null,"2012-07-02T18:30:00","Maurice","Dîner avec Pat"]
[null,"2012-07-02T20:00:00","Maurice","Film en famille"]
[null,"2012-07-03T16:00:00","Maurice","Départ pour le chalet"]
[null,"2012-07-04T10:00:00","Maurice","Défilé en ville"]
[null,"2012-07-05T20:00:00","Maurice","Feu d’artifice"]
[null,"2012-07-06T11:00:00","Maurice","Barbecue en famille"]
[null,"2012-07-07","Maurice","Pique-nique entre amis"]
[null,"2012-07-08T17:00:00","Maurice","Retour à la maison"]
[null,"2012-07-02T10:00:00","Anna","Cours de piano"]
[null,"2012-07-04T12:00:00","Mayeul","Jardin des Elus"]
[null,"2019-07-01T10:00:00","Dieuvie","Brazzaville"]

{"sheet":"Planification","index":4,"n_rows":25,"n_cols":9,"rows_kept":25,"cut":false,"hidden":false,"merged":[[1,1,2,3]]}
[]
[null,"PROGRAMME QUOTIDIEN",null,null,null,null,"Pour la semaine du ","Afficher le programme pour : "]
[null,null,null,null,null,{"$f":"WEEKDAY(SemaineDu,1)","v":2},"2012-07-02","Maurice"]
[null,null,{"$f":"$F$3=COLUMN(A$1)","v":false},{"$f":"$F$3=COLUMN(B$1)","v":true},false,false,false,false,false]
[null,null,{"$f":"COLUMN(A$1)-MATCH(TRUE,$C$4:$I$4,0)+SemaineDu+1","v":"2012-07-02"},"2012-07-03","2012-07-04","2012-07-05","2012-07-06","2012-07-07","2012-07-08"]
[null,"TIME","LUNDI","MARDI","MERCREDI","JEUDI","VENDREDI","SAMEDI","DIMANCHE"]
[null,"06:00:00",{"$f":"IFERROR(INDEX(tblDonnées[],MATCH(C$5+$B7&AfficherNom,tblDonnées[[#This Row],[DATE et HEURE]]&tblDonnées[[#This Row],[QUI]],0),3),\"\")","v":""},{"$f":"IFERROR(INDEX(tblDonnées[],MATCH(D$5+$B7&AfficherNom,tblDonnées[DATE et HEURE]&tblDonnées[QUI],0),3),\"\")","v":""},{"$f":"IFERROR(INDEX(tblDonnées[],MATCH(E$5+$B7&AfficherNom,tblDonnées[DATE et HEURE]&tblDonnées[QUI],0),3),\"\")","v":""},{"$f":"IFERROR(INDEX(tblDonnées[],MATCH(F$5+$B7&AfficherNom,tblDonnées[DATE et HEURE]&tblDonnées[QUI],0),3),\"\")","v":""},{"$f":"IFERROR(INDEX(tblDonnées[],MATCH(G$5+$B7&AfficherNom,tblDonnées[DATE et HEURE]&tblDonnées[QUI],0),3),\"\")","v":""},{"$f":"IFERROR(INDEX(tblDonnées[],MATCH(H$5+$B7&AfficherNom,tblDonnées[DATE et HEURE]&tblDonnées[QUI],0),3),\"\")","v":""},{"$f":"IFERROR(INDEX(tblDonnées[],MATCH(I$5+$B7&AfficherNom,tblDonnées[DATE et HEURE]&tblDonnées[QUI],0),3),\"\")","v":""}]
[null,"07:00:00",{"$f":"IFERROR(INDEX(tblDonnées[],MATCH(C$5+$B8&AfficherNom,tblDonnées[DATE et HEURE]&tblDonnées[QUI],0),3),\"\")","v":""},{"$f":"IFERROR(INDEX(tblDonnées[],MATCH(D$5+$B8&AfficherNom,tblDonnées[DATE et HEURE]&tblDonnées[QUI],0),3),\"\")","v":""},{"$f":"IFERROR(INDEX(tblDonnées[],MATCH(E$5+$B8&AfficherNom,tblDonnées[DATE et HEURE]&tblDonnées[QUI],0),3),\"\")","v":""},{"$f":"IFERROR(INDEX(tblDonnées[],MATCH(F$5+$B8&AfficherNom,tblDonnées[DATE et HEURE]&tblDonnées[QUI],0),3),\"\")","v":""},{"$f":"IFERROR(INDEX(tblDonnées[],MATCH(G$5+$B8&AfficherNom,tblDonnées[DATE et HEURE]&tblDonnées[QUI],0),3),\"\")","v":""},{"$f":"IFERROR(INDEX(tblDonnées[],MATCH(H$5+$B8&AfficherNom,tblDonnées[DATE et HEURE]&tblDonnées[QUI],0),3),\"\")","v":""},{"$f":"IFERROR(INDEX(tblDonnées[],MATCH(I$5+$B8&AfficherNom,tblDonnées[DATE et HEURE]&tblDonnées[QUI],0),3),\"\")","v":""}]
[null,"08:00:00",{"$f":"IFERROR(INDEX(tblDonnées[],MATCH(C$5+$B9&AfficherNom,tblDonnées[DATE et HEURE]&tblDonnées[QUI],0),3),\"\")","v":""},{"$f":"IFERROR(INDEX(tblDonnées[],MATCH(D$5+$B9&AfficherNom,tblDonnées[DATE et HEURE]&tblDonnées[QUI],0),3),\"\")","v":""},{"$f":"IFERROR(INDEX(tblDonnées[],MATCH(E$5+$B9&AfficherNom,tblDonnées[DATE et HEURE]&tblDonnées[QUI],0),3),\"\")","v":""},{"$f":"IFERROR(INDEX(tblDonnées[],MATCH(F$5+$B9&AfficherNom,tblDonnées[DATE et HEURE]&tblDonnées[QUI],0),3),\"\")","v":""},{"$f":"IFERROR(INDEX(tblDonnées[],MATCH(G$5+$B9&AfficherNom,tblDonnées[DATE et HEURE]&tblDonnées[QUI],0),3),\"\")","v":""},{"$f":"IFERROR(INDEX(tblDonnées[],MATCH(H$5+$B9&AfficherNom,tblDonnées[DATE et HEURE]&tblDonnées[QUI],0),3),\"\")","v":""},{"$f":"IFERROR(INDEX(tblDonnées[],MATCH(I$5+$B9&AfficherNom,tblDonnées[DATE et HEURE]&tblDonnées[QUI],0),3),\"\")","v":""}]
[null,"09:00:00",{"$f":"IFERROR(INDEX(tblDonnées[],MATCH(C$5+$B10&AfficherNom,tblDonnées[DATE et HEURE]&tblDonnées[QUI],0),3),\"\")","v":""},{"$f":"IFERROR(INDEX(tblDonnées[],MATCH(D$5+$B10&AfficherNom,tblDonnées[DATE et HEURE]&tblDonnées[QUI],0),3),\"\")","v":""},{"$f":"IFERROR(INDEX(tblDonnées[],MATCH(E$5+$B10&AfficherNom,tblDonnées[DATE et HEURE]&tblDonnées[QUI],0),3),\"\")","v":""},{"$f":"IFERROR(INDEX(tblDonnées[],MATCH(F$5+$B10&AfficherNom,tblDonnées[DATE et HEURE]&tblDonnées[QUI],0),3),\"\")","v":""},{"$f":"IFERROR(INDEX(tblDonnées[],MATCH(G$5+$B10&AfficherNom,tblDonnées[DATE et HEURE]&tblDonnées[QUI],0),3),\"\")","v":""},{"$f":"IFERROR(INDEX(tblDonnées[],MATCH(H$5+$B10&AfficherNom,tblDonnées[DATE et HEURE]&tblDonnées[QUI],0),3),\"\")","v":""},{"$f":"IFERROR(INDEX(tblDonnées[],MATCH(I$5+$B10&AfficherNom,tblDonnées[DATE et HEURE]&tblDonnées[QUI],0),3),\"\")","v":""}]
[null,"10:00:00",{"$f":"IFERROR(INDEX(tblDonnées[],MATCH(C$5+$B11&AfficherNom,tblDonnées[DATE et HEURE]&tblDonnées[QUI],0),3),\"\")","v":""},{"$f":"IFERROR(INDEX(tblDonnées[],MATCH(D$5+$B11&AfficherNom,tblDonnées[DATE et HEURE]&tblDonnées[QUI],0),3),\"\")","v":""},{"$f":"IFERROR(INDEX(tblDonnées[],MATCH(E$5+$B11&AfficherNom,tblDonnées[DATE et HEURE]&tblDonnées[QUI],0),3),\"\")","v":"Défilé en ville"},{"$f":"IFERROR(INDEX(tblDonnées[],MATCH(F$5+$B11&AfficherNom,tblDonnées[DATE et HEURE]&tblDonnées[QUI],0),3),\"\")","v":""},{"$f":"IFERROR(INDEX(tblDonnées[],MATCH(G$5+$B11&AfficherNom,tblDonnées[DATE et HEURE]&tblDonnées[QUI],0),3),\"\")","v":""},{"$f":"IFERROR(INDEX(tblDonnées[],MATCH(H$5+$B11&AfficherNom,tblDonnées[DATE et HEURE]&tblDonnées[QUI],0),3),\"\")","v":""},{"$f":"IFERROR(INDEX(tblDonnées[],MATCH(I$5+$B11&AfficherNom,tblDonnées[DATE et HEURE]&tblDonnées[QUI],0),3),\"\")","v":""}]
[null,"11:00:00",{"$f":"IFERROR(INDEX(tblDonnées[],MATCH(C$5+$B12&AfficherNom,tblDonnées[DATE et HEURE]&tblDonnées[QUI],0),3),\"\")","v":""},{"$f":"IFERROR(INDEX(tblDonnées[],MATCH(D$5+$B12&AfficherNom,tblDonnées[DATE et HEURE]&tblDonnées[QUI],0),3),\"\")","v":""},{"$f":"IFERROR(INDEX(tblDonnées[],MATCH(E$5+$B12&AfficherNom,tblDonnées[DATE et HEURE]&tblDonnées[QUI],0),3),\"\")","v":""},{"$f":"IFERROR(INDEX(tblDonnées[],MATCH(F$5+$B12&AfficherNom,tblDonnées[DATE et HEURE]&tblDonnées[QUI],0),3),\"\")","v":""},{"$f":"IFERROR(INDEX(tblDonnées[],MATCH(G$5+$B12&AfficherNom,tblDonnées[DATE et HEURE]&tblDonnées[QUI],0),3),\"\")","v":"Barbecue en famille"},{"$f":"IFERROR(INDEX(tblDonnées[],MATCH(H$5+$B12&AfficherNom,tblDonnées[DATE et HEURE]&tblDonnées[QUI],0),3),\"\")","v":""},{"$f":"IFERROR(INDEX(tblDonnées[],MATCH(I$5+$B12&AfficherNom,tblDonnées[DATE et HEURE]&tblDonnées[QUI],0),3),\"\")","v":""}]
[null,"12:00:00",{"$f":"IFERROR(INDEX(tblDonnées[],MATCH(C$5+$B13&AfficherNom,tblDonnées[DATE et HEURE]&tblDonnées[QUI],0),3),\"\")","v":""},{"$f":"IFERROR(INDEX(tblDonnées[],MATCH(D$5+$B13&AfficherNom,tblDonnées[DATE et HEURE]&tblDonnées[QUI],0),3),\"\")","v":""},{"$f":"IFERROR(INDEX(tblDonnées[],MATCH(E$5+$B13&AfficherNom,tblDonnées[DATE et HEURE]&tblDonnées[QUI],0),3),\"\")","v":""},{"$f":"IFERROR(INDEX(tblDonnées[],MATCH(F$5+$B13&AfficherNom,tblDonnées[DATE et HEURE]&tblDonnées[QUI],0),3),\"\")","v":""},{"$f":"IFERROR(INDEX(tblDonnées[],MATCH(G$5+$B13&AfficherNom,tblDonnées[DATE et HEURE]&tblDonnées[QUI],0),3),\"\")","v":""},{"$f":"IFERROR(INDEX(tblDonnées[],MATCH(H$5+$B13&AfficherNom,tblDonnées[DATE et HEURE]&tblDonnées[QUI],0),3),\"\")","v":""},{"$f":"IFERROR(INDEX(tblDonnées[],MATCH(I$5+$B13&AfficherNom,tblDonnées[DATE et HEURE]&tblDonnées[QUI],0),3),\"\")","v":""}]
[null,"13:00:00",{"$f":"IFERROR(INDEX(tblDonnées[],MATCH(C$5+$B14&AfficherNom,tblDonnées[DATE et HEURE]&tblDonnées[QUI],0),3),\"\")","v":""},{"$f":"IFERROR(INDEX(tblDonnées[],MATCH(D$5+$B14&AfficherNom,tblDonnées[DATE et HEURE]&tblDonnées[QUI],0),3),\"\")","v":""},{"$f":"IFERROR(INDEX(tblDonnées[],MATCH(E$5+$B14&AfficherNom,tblDonnées[DATE et HEURE]&tblDonnées[QUI],0),3),\"\")","v":""},{"$f":"IFERROR(INDEX(tblDonnées[],MATCH(F$5+$B14&AfficherNom,tblDonnées[DATE et HEURE]&tblDonnées[QUI],0),3),\"\")","v":""},{"$f":"IFERROR(INDEX(tblDonnées[],MATCH(G$5+$B14&AfficherNom,tblDonnées[DATE et HEURE]&tblDonnées[QUI],0),3),\"\")","v":""},{"$f":"IFERROR(INDEX(tblDonnées[],MATCH(H$5+$B14&AfficherNom,tblDonnées[DATE et HEURE]&tblDonnées[QUI],0),3),\"\")","v":""},{"$f":"IFERROR(INDEX(tblDonnées[],MATCH(I$5+$B14&AfficherNom,tblDonnées[DATE et HEURE]&tblDonnées[QUI],0),3),\"\")","v":""}]
[null,"14:00:00",{"$f":"IFERROR(INDEX(tblDonnées[],MATCH(C$5+$B15&AfficherNom,tblDonnées[DATE et HEURE]&tblDonnées[QUI],0),3),\"\")","v":""},{"$f":"IFERROR(INDEX(tblDonnées[],MATCH(D$5+$B15&AfficherNom,tblDonnées[DATE et HEURE]&tblDonnées[QUI],0),3),\"\")","v":""},{"$f":"IFERROR(INDEX(tblDonnées[],MATCH(E$5+$B15&AfficherNom,tblDonnées[DATE et HEURE]&tblDonnées[QUI],0),3),\"\")","v":""},{"$f":"IFERROR(INDEX(tblDonnées[],MATCH(F$5+$B15&AfficherNom,tblDonnées[DATE et HEURE]&tblDonnées[QUI],0),3),\"\")","v":""},{"$f":"IFERROR(INDEX(tblDonnées[],MATCH(G$5+$B15&AfficherNom,tblDonnées[DATE et HEURE]&tblDonnées[QUI],0),3),\"\")","v":""},{"$f":"IFERROR(INDEX(tblDonnées[],MATCH(H$5+$B15&AfficherNom,tblDonnées[DATE et HEURE]&tblDonnées[QUI],0),3),\"\")","v":""},{"$f":"IFERROR(INDEX(tblDonnées[],MATCH(I$5+$B15&AfficherNom,tblDonnées[DATE et HEURE]&tblDonnées[QUI],0),3),\"\")","v":""}]
[null,"15:00:00",{"$f":"IFERROR(INDEX(tblDonnées[],MATCH(C$5+$B16&AfficherNom,tblDonnées[DATE et HEURE]&tblDonnées[QUI],0),3),\"\")","v":""},{"$f":"IFERROR(INDEX(tblDonnées[],MATCH(D$5+$B16&AfficherNom,tblDonnées[DATE et HEURE]&tblDonnées[QUI],0),3),\"\")","v":""},{"$f":"IFERROR(INDEX(tblDonnées[],MATCH(E$5+$B16&AfficherNom,tblDonnées[DATE et HEURE]&tblDonnées[QUI],0),3),\"\")","v":""},{"$f":"IFERROR(INDEX(tblDonnées[],MATCH(F$5+$B16&AfficherNom,tblDonnées[DATE et HEURE]&tblDonnées[QUI],0),3),\"\")","v":""},{"$f":"IFERROR(INDEX(tblDonnées[],MATCH(G$5+$B16&AfficherNom,tblDonnées[DATE et HEURE]&tblDonnées[QUI],0),3),\"\")","v":""},{"$f":"IFERROR(INDEX(tblDonnées[],MATCH(H$5+$B16&AfficherNom,tblDonnées[DATE et HEURE]&tblDonnées[QUI],0),3),\"\")","v":""},{"$f":"IFERROR(INDEX(tblDonnées[],MATCH(I$5+$B16&AfficherNom,tblDonnées[DATE et HEURE]&tblDonnées[QUI],0),3),\"\")","v":""}]
[null,"16:00:00",{"$f":"IFERROR(INDEX(tblDonnées[],MATCH(C$5+$B17&AfficherNom,tblDonnées[DATE et HEURE]&tblDonnées[QUI],0),3),\"\")","v":""},{"$f":"IFERROR(INDEX(tblDonnées[],MATCH(D$5+$B17&AfficherNom,tblDonnées[DATE et HEURE]&tblDonnées[QUI],0),3),\"\")","v":"Départ pour le chalet"},{"$f":"IFERROR(INDEX(tblDonnées[],MATCH(E$5+$B17&AfficherNom,tblDonnées[DATE et HEURE]&tblDonnées[QUI],0),3),\"\")","v":""},{"$f":"IFERROR(INDEX(tblDonnées[],MATCH(F$5+$B17&AfficherNom,tblDonnées[DATE et HEURE]&tblDonnées[QUI],0),3),\"\")","v":""},{"$f":"IFERROR(INDEX(tblDonnées[],MATCH(G$5+$B17&AfficherNom,tblDonnées[DATE et HEURE]&tblDonnées[QUI],0),3),\"\")","v":""},{"$f":"IFERROR(INDEX(tblDonnées[],MATCH(H$5+$B17&AfficherNom,tblDonnées[DATE et HEURE]&tblDonnées[QUI],0),3),\"\")","v":""},{"$f":"IFERROR(INDEX(tblDonnées[],MATCH(I$5+$B17&AfficherNom,tblDonnées[DATE et HEURE]&tblDonnées[QUI],0),3),\"\")","v":""}]
[null,"17:00:00",{"$f":"IFERROR(INDEX(tblDonnées[],MATCH(C$5+$B18&AfficherNom,tblDonnées[DATE et HEURE]&tblDonnées[QUI],0),3),\"\")","v":""},{"$f":"IFERROR(INDEX(tblDonnées[],MATCH(D$5+$B18&AfficherNom,tblDonnées[DATE et HEURE]&tblDonnées[QUI],0),3),\"\")","v":""},{"$f":"IFERROR(INDEX(tblDonnées[],MATCH(E$5+$B18&AfficherNom,tblDonnées[DATE et HEURE]&tblDonnées[QUI],0),3),\"\")","v":""},{"$f":"IFERROR(INDEX(tblDonnées[],MATCH(F$5+$B18&AfficherNom,tblDonnées[DATE et HEURE]&tblDonnées[QUI],0),3),\"\")","v":""},{"$f":"IFERROR(INDEX(tblDonnées[],MATCH(G$5+$B18&AfficherNom,tblDonnées[DATE et HEURE]&tblDonnées[QUI],0),3),\"\")","v":""},{"$f":"IFERROR(INDEX(tblDonnées[],MATCH(H$5+$B18&AfficherNom,tblDonnées[DATE et HEURE]&tblDonnées[QUI],0),3),\"\")","v":""},{"$f":"IFERROR(INDEX(tblDonnées[],MATCH(I$5+$B18&AfficherNom,tblDonnées[DATE et HEURE]&tblDonnées[QUI],0),3),\"\")","v":"Retour à la maison"}]
[null,"18:00:00",{"$f":"IFERROR(INDEX(tblDonnées[],MATCH(C$5+$B19&AfficherNom,tblDonnées[DATE et HEURE]&tblDonnées[QUI],0),3),\"\")","v":"Prendre médicament"},{"$f":"IFERROR(INDEX(tblDonnées[],MATCH(D$5+$B19&AfficherNom,tblDonnées[DATE et HEURE]&tblDonnées[QUI],0),3),\"\")","v":""},{"$f":"IFERROR(INDEX(tblDonnées[],MATCH(E$5+$B19&AfficherNom,tblDonnées[DATE et HEURE]&tblDonnées[QUI],0),3),\"\")","v":""},{"$f":"IFERROR(INDEX(tblDonnées[],MATCH(F$5+$B19&AfficherNom,tblDonnées[DATE et HEURE]&tblDonnées[QUI],0),3),\"\")","v":""},{"$f":"IFERROR(INDEX(tblDonnées[],MATCH(G$5+$B19&AfficherNom,tblDonnées[DATE et HEURE]&tblDonnées[QUI],0),3),\"\")","v":""},{"$f":"IFERROR(INDEX(tblDonnées[],MATCH(H$5+$B19&AfficherNom,tblDonnées[DATE et HEURE]&tblDonnées[QUI],0),3),\"\")","v":""},{"$f":"IFERROR(INDEX(tblDonnées[],MATCH(I$5+$B19&AfficherNom,tblDonnées[DATE et HEURE]&tblDonnées[QUI],0),3),\"\")","v":""}]
[null,"19:00:00",{"$f":"IFERROR(INDEX(tblDonnées[],MATCH(C$5+$B20&AfficherNom,tblDonnées[DATE et HEURE]&tblDonnées[QUI],0),3),\"\")","v":""},{"$f":"IFERROR(INDEX(tblDonnées[],MATCH(D$5+$B20&AfficherNom,tblDonnées[DATE et HEURE]&tblDonnées[QUI],0),3),\"\")","v":""},{"$f":"IFERROR(INDEX(tblDonnées[],MATCH(E$5+$B20&AfficherNom,tblDonnées[DATE et HEURE]&tblDonnées[QUI],0),3),\"\")","v":""},{"$f":"IFERROR(INDEX(tblDonnées[],MATCH(F$5+$B20&AfficherNom,tblDonnées[DATE et HEURE]&tblDonnées[QUI],0),3),\"\")","v":""},{"$f":"IFERROR(INDEX(tblDonnées[],MATCH(G$5+$B20&AfficherNom,tblDonnées[DATE et HEURE]&tblDonnées[QUI],0),3),\"\")","v":""},{"$f":"IFERROR(INDEX(tblDonnées[],MATCH(H$5+$B20&AfficherNom,tblDonnées[DATE et HEURE]&tblDonnées[QUI],0),3),\"\")","v":""},{"$f":"IFERROR(INDEX(tblDonnées[],MATCH(I$5+$B20&AfficherNom,tblDonnées[DATE et HEURE]&tblDonnées[QUI],0),3),\"\")","v":""}]
[null,"20:00:00",{"$f":"IFERROR(INDEX(tblDonnées[],MATCH(C$5+$B21&AfficherNom,tblDonnées[DATE et HEURE]&tblDonnées[QUI],0),3),\"\")","v":"Film en famille"},{"$f":"IFERROR(INDEX(tblDonnées[],MATCH(D$5+$B21&AfficherNom,tblDonnées[DATE et HEURE]&tblDonnées[QUI],0),3),\"\")","v":""},{"$f":"IFERROR(INDEX(tblDonnées[],MATCH(E$5+$B21&AfficherNom,tblDonnées[DATE et HEURE]&tblDonnées[QUI],0),3),\"\")","v":""},{"$f":"IFERROR(INDEX(tblDonnées[],MATCH(F$5+$B21&AfficherNom,tblDonnées[DATE et HEURE]&tblDonnées[QUI],0),3),\"\")","v":"Feu d’artifice"},{"$f":"IFERROR(INDEX(tblDonnées[],MATCH(G$5+$B21&AfficherNom,tblDonnées[DATE et HEURE]&tblDonnées[QUI],0),3),\"\")","v":""},{"$f":"IFERROR(INDEX(tblDonnées[],MATCH(H$5+$B21&AfficherNom,tblDonnées[DATE et HEURE]&tblDonnées[QUI],0),3),\"\")","v":""},{"$f":"IFERROR(INDEX(tblDonnées[],MATCH(I$5+$B21&AfficherNom,tblDonnées[DATE et HEURE]&tblDonnées[QUI],0),3),\"\")","v":""}]
[null,"21:00:00",{"$f":"IFERROR(INDEX(tblDonnées[],MATCH(C$5+$B22&AfficherNom,tblDonnées[DATE et HEURE]&tblDonnées[QUI],0),3),\"\")","v":""},{"$f":"IFERROR(INDEX(tblDonnées[],MATCH(D$5+$B22&AfficherNom,tblDonnées[DATE et HEURE]&tblDonnées[QUI],0),3),\"\")","v":""},{"$f":"IFERROR(INDEX(tblDonnées[],MATCH(E$5+$B22&AfficherNom,tblDonnées[DATE et HEURE]&tblDonnées[QUI],0),3),\"\")","v":""},{"$f":"IFERROR(INDEX(tblDonnées[],MATCH(F$5+$B22&AfficherNom,tblDonnées[DATE et HEURE]&tblDonnées[QUI],0),3),\"\")","v":""},{"$f":"IFERROR(INDEX(tblDonnées[],MATCH(G$5+$B22&AfficherNom,tblDonnées[DATE et HEURE]&tblDonnées[QUI],0),3),\"\")","v":""},{"$f":"IFERROR(INDEX(tblDonnées[],MATCH(H$5+$B22&AfficherNom,tblDonnées[DATE et HEURE]&tblDonnées[QUI],0),3),\"\")","v":""},{"$f":"IFERROR(INDEX(tblDonnées[],MATCH(I$5+$B22&AfficherNom,tblDonnées[DATE et HEURE]&tblDonnées[QUI],0),3),\"\")","v":""}]
[null,"22:00:00",{"$f":"IFERROR(INDEX(tblDonnées[],MATCH(C$5+$B23&AfficherNom,tblDonnées[DATE et HEURE]&tblDonnées[QUI],0),3),\"\")","v":""},{"$f":"IFERROR(INDEX(tblDonnées[],MATCH(D$5+$B23&AfficherNom,tblDonnées[DATE et HEURE]&tblDonnées[QUI],0),3),\"\")","v":""},{"$f":"IFERROR(INDEX(tblDonnées[],MATCH(E$5+$B23&AfficherNom,tblDonnées[DATE et HEURE]&tblDonnées[QUI],0),3),\"\")","v":""},{"$f":"IFERROR(INDEX(tblDonnées[],MATCH(F$5+$B23&AfficherNom,tblDonnées[DATE et HEURE]&tblDonnées[QUI],0),3),\"\")","v":""},{"$f":"IFERROR(INDEX(tblDonnées[],MATCH(G$5+$B23&AfficherNom,tblDonnées[DATE et HEURE]&tblDonnées[QUI],0),3),\"\")","v":""},{"$f":"IFERROR(INDEX(tblDonnées[],MATCH(H$5+$B23&AfficherNom,tblDonnées[DATE et HEURE]&tblDonnées[QUI],0),3),\"\")","v":""},{"$f":"IFERROR(INDEX(tblDonnées[],MATCH(I$5+$B23&AfficherNom,tblDonnées[DATE et HEURE]&tblDonnées[QUI],0),3),\"\")","v":""}]
[null,null,{"$f":"IFERROR(INDEX(tblDonnées[],MATCH(C$5+$B24&AfficherNom,tblDonnées[DATE et HEURE]&tblDonnées[QUI],0),3),\"\")","v":""},{"$f":"IFERROR(INDEX(tblDonnées[],MATCH(D$5+$B24&AfficherNom,tblDonnées[DATE et HEURE]&tblDonnées[QUI],0),3),\"\")","v":""},{"$f":"IFERROR(INDEX(tblDonnées[],MATCH(E$5+$B24&AfficherNom,tblDonnées[DATE et HEURE]&tblDonnées[QUI],0),3),\"\")","v":""},{"$f":"IFERROR(INDEX(tblDonnées[],MATCH(F$5+$B24&AfficherNom,tblDonnées[DATE et HEURE]&tblDonnées[QUI],0),3),\"\")","v":""},{"$f":"IFERROR(INDEX(tblDonnées[],MATCH(G$5+$B24&AfficherNom,tblDonnées[DATE et HEURE]&tblDonnées[QUI],0),3),\"\")","v":""},{"$f":"IFERROR(INDEX(tblDonnées[],MATCH(H$5+$B24&AfficherNom,tblDonnées[DATE et HEURE]&tblDonnées[QUI],0),3),\"\")","v":"Pique-nique entre amis"},{"$f":"IFERROR(INDEX(tblDonnées[],MATCH(I$5+$B24&AfficherNom,tblDonnées[DATE et HEURE]&tblDonnées[QUI],0),3),\"\")","v":""}]
[null,null,{"$f":"IFERROR(INDEX(tblDonnées[],MATCH(C$5+$B25&AfficherNom,tblDonnées[DATE et HEURE]&tblDonnées[QUI],0),3),\"\")","v":""},{"$f":"IFERROR(INDEX(tblDonnées[],MATCH(D$5+$B25&AfficherNom,tblDonnées[DATE et HEURE]&tblDonnées[QUI],0),3),\"\")","v":""},{"$f":"IFERROR(INDEX(tblDonnées[],MATCH(E$5+$B25&AfficherNom,tblDonnées[DATE et HEURE]&tblDonnées[QUI],0),3),\"\")","v":""},{"$f":"IFERROR(INDEX(tblDonnées[],MATCH(F$5+$B25&AfficherNom,tblDonnées[DATE et HEURE]&tblDonnées[QUI],0),3),\"\")","v":""},{"$f":"IFERROR(INDEX(tblDonnées[],MATCH(G$5+$B25&AfficherNom,tblDonnées[DATE et HEURE]&tblDonnées[QUI],0),3),\"\")","v":""},{"$f":"IFERROR(INDEX(tblDonnées[],MATCH(H$5+$B25&AfficherNom,tblDonnées[DATE et HEURE]&tblDonnées[QUI],0),3),\"\")","v":"Pique-nique entre amis"},{"$f":"IFERROR(INDEX(tblDonnées[],MATCH(I$5+$B25&AfficherNom,tblDonnées[DATE et HEURE]&tblDonnées[QUI],0),3),\"\")","v":""}]

{"sheet":"Feuil2","index":5,"n_rows":18,"n_cols":7,"rows_kept":18,"cut":false,"hidden":false,"merged":[[17,3,20,5],[17,6,20,8],[15,3,16,5],[11,3,12,5],[13,3,14,5],[15,6,16,8],[11,6,12,8],[13,6,14,8]]}
[]
[]
[]
[]
[]
[]
[]
[]
[]
[]
[]
[null,null,null,"Nombre de chemises commandées",null,null,{"$f":"COUNTIF(Clients!F:F,\"chemise\")","v":3}]
[]
[null,null,null,"Nombre de chaussures commandées",null,null,{"$f":"COUNTIF(Clients!F:F,\"chaussure\")","v":1}]
[]
[null,null,null,"Nombre de pantalon commandés",null,null,{"$f":"COUNTIF(Clients!F:F,\"pantalon\")","v":1}]
[]
[null,null,null,"Total de ventes",null,null,{"$f":"SUM(Clients!G:G)","v":670000}]

{"sheet":"Recherche de nom","index":6,"n_rows":132,"n_cols":2,"rows_kept":132,"cut":false,"hidden":true,"merged":[[0,0,0,1]]}
["Cette feuille contient les noms de la liste de menu déroulant de la cellule H3 de la feuille Planification. Toute modification apportée à cette feuille peut entraîner une erreur."]
["NOM UNIQUE","NUMÉRO DE LIGNE"]
[{"$f":"IFERROR(INDEX(ChampQui,MATCH(0,COUNTIF($A$2:A2,ChampQui),0)),\"\")","v":"Anna"},{"$f":"IF(A3=\"\",\"\",ROW())","v":3}]
[{"$f":"IFERROR(INDEX(ChampQui,MATCH(0,COUNTIF($A$2:A3,ChampQui),0)),\"\")","v":"Maurice"},{"$f":"IF(A4=\"\",\"\",ROW())","v":4}]
[{"$f":"IFERROR(INDEX(ChampQui,MATCH(0,COUNTIF($A$2:A4,ChampQui),0)),\"\")","v":"Mayeul"},5]
[{"$f":"IFERROR(INDEX(ChampQui,MATCH(0,COUNTIF($A$2:A5,ChampQui),0)),\"\")","v":"Dieuvie"},6]
[{"$f":"IFERROR(INDEX(ChampQui,MATCH(0,COUNTIF($A$2:A6,ChampQui),0)),\"\")","v":""},""]
[{"$f":"IFERROR(INDEX(ChampQui,MATCH(0,COUNTIF($A$2:A7,ChampQui),0)),\"\")","v":""},""]
[{"$f":"IFERROR(INDEX(ChampQui,MATCH(0,COUNTIF($A$2:A8,ChampQui),0)),\"\")","v":""},""]
[{"$f":"IFERROR(INDEX(ChampQui,MATCH(0,COUNTIF($A$2:A9,ChampQui),0)),\"\")","v":""},""]
[{"$f":"IFERROR(INDEX(ChampQui,MATCH(0,COUNTIF($A$2:A10,ChampQui),0)),\"\")","v":""},""]
[{"$f":"IFERROR(INDEX(ChampQui,MATCH(0,COUNTIF($A$2:A11,ChampQui),0)),\"\")","v":""},""]
[{"$f":"IFERROR(INDEX(ChampQui,MATCH(0,COUNTIF($A$2:A12,ChampQui),0)),\"\")","v":""},""]
[{"$f":"IFERROR(INDEX(ChampQui,MATCH(0,COUNTIF($A$2:A13,ChampQui),0)),\"\")","v":""},""]
[{"$f":"IFERROR(INDEX(ChampQui,MATCH(0,COUNTIF($A$2:A14,ChampQui),0)),\"\")","v":""},""]
[{"$f":"IFERROR(INDEX(ChampQui,MATCH(0,COUNTIF($A$2:A15,ChampQui),0)),\"\")","v":""},""]
[{"$f":"IFERROR(INDEX(ChampQui,MATCH(0,COUNTIF($A$2:A16,ChampQui),0)),\"\")","v":""},""]
[{"$f":"IFERROR(INDEX(ChampQui,MATCH(0,COUNTIF($A$2:A17,ChampQui),0)),\"\")","v":""},""]
[{"$f":"IFERROR(INDEX(ChampQui,MATCH(0,COUNTIF($A$2:A18,ChampQui),0)),\"\")","v":""},""]
[{"$f":"IFERROR(INDEX(ChampQui,MATCH(0,COUNTIF($A$2:A19,ChampQui),0)),\"\")","v":""},""]
[{"$f":"IFERROR(INDEX(ChampQui,MATCH(0,COUNTIF($A$2:A20,ChampQui),0)),\"\")","v":""},""]
[{"$f":"IFERROR(INDEX(ChampQui,MATCH(0,COUNTIF($A$2:A21,ChampQui),0)),\"\")","v":""},""]
[{"$f":"IFERROR(INDEX(ChampQui,MATCH(0,COUNTIF($A$2:A22,ChampQui),0)),\"\")","v":""},""]
[{"$f":"IFERROR(INDEX(ChampQui,MATCH(0,COUNTIF($A$2:A23,ChampQui),0)),\"\")","v":""},""]
[{"$f":"IFERROR(INDEX(ChampQui,MATCH(0,COUNTIF($A$2:A24,ChampQui),0)),\"\")","v":""},""]
[{"$f":"IFERROR(INDEX(ChampQui,MATCH(0,COUNTIF($A$2:A25,ChampQui),0)),\"\")","v":""},""]
[{"$f":"IFERROR(INDEX(ChampQui,MATCH(0,COUNTIF($A$2:A26,ChampQui),0)),\"\")","v":""},""]
[{"$f":"IFERROR(INDEX(ChampQui,MATCH(0,COUNTIF($A$2:A27,ChampQui),0)),\"\")","v":""},""]
[{"$f":"IFERROR(INDEX(ChampQui,MATCH(0,COUNTIF($A$2:A28,ChampQui),0)),\"\")","v":""},""]
[{"$f":"IFERROR(INDEX(ChampQui,MATCH(0,COUNTIF($A$2:A29,ChampQui),0)),\"\")","v":""},""]
[{"$f":"IFERROR(INDEX(ChampQui,MATCH(0,COUNTIF($A$2:A30,ChampQui),0)),\"\")","v":""},""]
[{"$f":"IFERROR(INDEX(ChampQui,MATCH(0,COUNTIF($A$2:A31,ChampQui),0)),\"\")","v":""},""]
[{"$f":"IFERROR(INDEX(ChampQui,MATCH(0,COUNTIF($A$2:A32,ChampQui),0)),\"\")","v":""},""]
[{"$f":"IFERROR(INDEX(ChampQui,MATCH(0,COUNTIF($A$2:A33,ChampQui),0)),\"\")","v":""},""]
[{"$f":"IFERROR(INDEX(ChampQui,MATCH(0,COUNTIF($A$2:A34,ChampQui),0)),\"\")","v":""},""]
[{"$f":"IFERROR(INDEX(ChampQui,MATCH(0,COUNTIF($A$2:A35,ChampQui),0)),\"\")","v":""},""]
[{"$f":"IFERROR(INDEX(ChampQui,MATCH(0,COUNTIF($A$2:A36,ChampQui),0)),\"\")","v":""},""]
[{"$f":"IFERROR(INDEX(ChampQui,MATCH(0,COUNTIF($A$2:A37,ChampQui),0)),\"\")","v":""},""]
[{"$f":"IFERROR(INDEX(ChampQui,MATCH(0,COUNTIF($A$2:A38,ChampQui),0)),\"\")","v":""},""]
[{"$f":"IFERROR(INDEX(ChampQui,MATCH(0,COUNTIF($A$2:A39,ChampQui),0)),\"\")","v":""},""]
[{"$f":"IFERROR(INDEX(ChampQui,MATCH(0,COUNTIF($A$2:A40,ChampQui),0)),\"\")","v":""},""]
[{"$f":"IFERROR(INDEX(ChampQui,MATCH(0,COUNTIF($A$2:A41,ChampQui),0)),\"\")","v":""},""]
[{"$f":"IFERROR(INDEX(ChampQui,MATCH(0,COUNTIF($A$2:A42,ChampQui),0)),\"\")","v":""},""]
[{"$f":"IFERROR(INDEX(ChampQui,MATCH(0,COUNTIF($A$2:A43,ChampQui),0)),\"\")","v":""},""]
[{"$f":"IFERROR(INDEX(ChampQui,MATCH(0,COUNTIF($A$2:A44,ChampQui),0)),\"\")","v":""},""]
[{"$f":"IFERROR(INDEX(ChampQui,MATCH(0,COUNTIF($A$2:A45,ChampQui),0)),\"\")","v":""},""]
[{"$f":"IFERROR(INDEX(ChampQui,MATCH(0,COUNTIF($A$2:A46,ChampQui),0)),\"\")","v":""},""]
[{"$f":"IFERROR(INDEX(ChampQui,MATCH(0,COUNTIF($A$2:A47,ChampQui),0)),\"\")","v":""},""]
[{"$f":"IFERROR(INDEX(ChampQui,MATCH(0,COUNTIF($A$2:A48,ChampQui),0)),\"\")","v":""},""]
[{"$f":"IFERROR(INDEX(ChampQui,MATCH(0,COUNTIF($A$2:A49,ChampQui),0)),\"\")","v":""},""]
[{"$f":"IFERROR(INDEX(ChampQui,MATCH(0,COUNTIF($A$2:A50,ChampQui),0)),\"\")","v":""},""]
[{"$f":"IFERROR(INDEX(ChampQui,MATCH(0,COUNTIF($A$2:A51,ChampQui),0)),\"\")","v":""},""]
[{"$f":"IFERROR(INDEX(ChampQui,MATCH(0,COUNTIF($A$2:A52,ChampQui),0)),\"\")","v":""},""]
[{"$f":"IFERROR(INDEX(ChampQui,MATCH(0,COUNTIF($A$2:A53,ChampQui),0)),\"\")","v":""},""]
[{"$f":"IFERROR(INDEX(ChampQui,MATCH(0,COUNTIF($A$2:A54,ChampQui),0)),\"\")","v":""},""]
[{"$f":"IFERROR(INDEX(ChampQui,MATCH(0,COUNTIF($A$2:A55,ChampQui),0)),\"\")","v":""},""]
[{"$f":"IFERROR(INDEX(ChampQui,MATCH(0,COUNTIF($A$2:A56,ChampQui),0)),\"\")","v":""},""]
[{"$f":"IFERROR(INDEX(ChampQui,MATCH(0,COUNTIF($A$2:A57,ChampQui),0)),\"\")","v":""},""]
[{"$f":"IFERROR(INDEX(ChampQui,MATCH(0,COUNTIF($A$2:A58,ChampQui),0)),\"\")","v":""},""]
[{"$f":"IFERROR(INDEX(ChampQui,MATCH(0,COUNTIF($A$2:A59,ChampQui),0)),\"\")","v":""},""]
[{"$f":"IFERROR(INDEX(ChampQui,MATCH(0,COUNTIF($A$2:A60,ChampQui),0)),\"\")","v":""},""]
[{"$f":"IFERROR(INDEX(ChampQui,MATCH(0,COUNTIF($A$2:A61,ChampQui),0)),\"\")","v":""},""]
[{"$f":"IFERROR(INDEX(ChampQui,MATCH(0,COUNTIF($A$2:A62,ChampQui),0)),\"\")","v":""},""]
[{"$f":"IFERROR(INDEX(ChampQui,MATCH(0,COUNTIF($A$2:A63,ChampQui),0)),\"\")","v":""},""]
[{"$f":"IFERROR(INDEX(ChampQui,MATCH(0,COUNTIF($A$2:A64,ChampQui),0)),\"\")","v":""},""]
[{"$f":"IFERROR(INDEX(ChampQui,MATCH(0,COUNTIF($A$2:A65,ChampQui),0)),\"\")","v":""},""]
[{"$f":"IFERROR(INDEX(ChampQui,MATCH(0,COUNTIF($A$2:A66,ChampQui),0)),\"\")","v":""},""]
[{"$f":"IFERROR(INDEX(ChampQui,MATCH(0,COUNTIF($A$2:A67,ChampQui),0)),\"\")","v":""},{"$f":"IF(A68=\"\",\"\",ROW())","v":""}]
[{"$f":"IFERROR(INDEX(ChampQui,MATCH(0,COUNTIF($A$2:A68,ChampQui),0)),\"\")","v":""},""]
[{"$f":"IFERROR(INDEX(ChampQui,MATCH(0,COUNTIF($A$2:A69,ChampQui),0)),\"\")","v":""},""]
[{"$f":"IFERROR(INDEX(ChampQui,MATCH(0,COUNTIF($A$2:A70,ChampQui),0)),\"\")","v":""},""]
[{"$f":"IFERROR(INDEX(ChampQui,MATCH(0,COUNTIF($A$2:A71,ChampQui),0)),\"\")","v":""},""]
[{"$f":"IFERROR(INDEX(ChampQui,MATCH(0,COUNTIF($A$2:A72,ChampQui),0)),\"\")","v":""},""]
[{"$f":"IFERROR(INDEX(ChampQui,MATCH(0,COUNTIF($A$2:A73,ChampQui),0)),\"\")","v":""},""]
[{"$f":"IFERROR(INDEX(ChampQui,MATCH(0,COUNTIF($A$2:A74,ChampQui),0)),\"\")","v":""},""]
[{"$f":"IFERROR(INDEX(ChampQui,MATCH(0,COUNTIF($A$2:A75,ChampQui),0)),\"\")","v":""},""]
[{"$f":"IFERROR(INDEX(ChampQui,MATCH(0,COUNTIF($A$2:A76,ChampQui),0)),\"\")","v":""},""]
[{"$f":"IFERROR(INDEX(ChampQui,MATCH(0,COUNTIF($A$2:A77,ChampQui),0)),\"\")","v":""},""]
[{"$f":"IFERROR(INDEX(ChampQui,MATCH(0,COUNTIF($A$2:A78,ChampQui),0)),\"\")","v":""},""]
[{"$f":"IFERROR(INDEX(ChampQui,MATCH(0,COUNTIF($A$2:A79,ChampQui),0)),\"\")","v":""},""]
[{"$f":"IFERROR(INDEX(ChampQui,MATCH(0,COUNTIF($A$2:A80,ChampQui),0)),\"\")","v":""},""]
[{"$f":"IFERROR(INDEX(ChampQui,MATCH(0,COUNTIF($A$2:A81,ChampQui),0)),\"\")","v":""},""]
[{"$f":"IFERROR(INDEX(ChampQui,MATCH(0,COUNTIF($A$2:A82,ChampQui),0)),\"\")","v":""},""]
[{"$f":"IFERROR(INDEX(ChampQui,MATCH(0,COUNTIF($A$2:A83,ChampQui),0)),\"\")","v":""},""]
[{"$f":"IFERROR(INDEX(ChampQui,MATCH(0,COUNTIF($A$2:A84,ChampQui),0)),\"\")","v":""},""]
[{"$f":"IFERROR(INDEX(ChampQui,MATCH(0,COUNTIF($A$2:A85,ChampQui),0)),\"\")","v":""},""]
[{"$f":"IFERROR(INDEX(ChampQui,MATCH(0,COUNTIF($A$2:A86,ChampQui),0)),\"\")","v":""},""]
[{"$f":"IFERROR(INDEX(ChampQui,MATCH(0,COUNTIF($A$2:A87,ChampQui),0)),\"\")","v":""},""]
[{"$f":"IFERROR(INDEX(ChampQui,MATCH(0,COUNTIF($A$2:A88,ChampQui),0)),\"\")","v":""},""]
[{"$f":"IFERROR(INDEX(ChampQui,MATCH(0,COUNTIF($A$2:A89,ChampQui),0)),\"\")","v":""},""]
[{"$f":"IFERROR(INDEX(ChampQui,MATCH(0,COUNTIF($A$2:A90,ChampQui),0)),\"\")","v":""},""]
[{"$f":"IFERROR(INDEX(ChampQui,MATCH(0,COUNTIF($A$2:A91,ChampQui),0)),\"\")","v":""},""]
[{"$f":"IFERROR(INDEX(ChampQui,MATCH(0,COUNTIF($A$2:A92,ChampQui),0)),\"\")","v":""},""]
[{"$f":"IFERROR(INDEX(ChampQui,MATCH(0,COUNTIF($A$2:A93,ChampQui),0)),\"\")","v":""},""]
[{"$f":"IFERROR(INDEX(ChampQui,MATCH(0,COUNTIF($A$2:A94,ChampQui),0)),\"\")","v":""},""]
[{"$f":"IFERROR(INDEX(ChampQui,MATCH(0,COUNTIF($A$2:A95,ChampQui),0)),\"\")","v":""},""]
[{"$f":"IFERROR(INDEX(ChampQui,MATCH(0,COUNTIF($A$2:A96,ChampQui),0)),\"\")","v":""},""]
[{"$f":"IFERROR(INDEX(ChampQui,MATCH(0,COUNTIF($A$2:A97,ChampQui),0)),\"\")","v":""},""]
[{"$f":"IFERROR(INDEX(ChampQui,MATCH(0,COUNTIF($A$2:A98,ChampQui),0)),\"\")","v":""},""]
[{"$f":"IFERROR(INDEX(ChampQui,MATCH(0,COUNTIF($A$2:A99,ChampQui),0)),\"\")","v":""},""]
[{"$f":"IFERROR(INDEX(ChampQui,MATCH(0,COUNTIF($A$2:A100,ChampQui),0)),\"\")","v":""},""]
[{"$f":"IFERROR(INDEX(ChampQui,MATCH(0,COUNTIF($A$2:A101,ChampQui),0)),\"\")","v":""},""]
[{"$f":"IFERROR(INDEX(ChampQui,MATCH(0,COUNTIF($A$2:A102,ChampQui),0)),\"\")","v":""},""]
[{"$f":"IFERROR(INDEX(ChampQui,MATCH(0,COUNTIF($A$2:A103,ChampQui),0)),\"\")","v":""},""]
[{"$f":"IFERROR(INDEX(ChampQui,MATCH(0,COUNTIF($A$2:A104,ChampQui),0)),\"\")","v":""},""]
[{"$f":"IFERROR(INDEX(ChampQui,MATCH(0,COUNTIF($A$2:A105,ChampQui),0)),\"\")","v":""},""]
[{"$f":"IFERROR(INDEX(ChampQui,MATCH(0,COUNTIF($A$2:A106,ChampQui),0)),\"\")","v":""},""]
[{"$f":"IFERROR(INDEX(ChampQui,MATCH(0,COUNTIF($A$2:A107,ChampQui),0)),\"\")","v":""},""]
[{"$f":"IFERROR(INDEX(ChampQui,MATCH(0,COUNTIF($A$2:A108,ChampQui),0)),\"\")","v":""},""]
[{"$f":"IFERROR(INDEX(ChampQui,MATCH(0,COUNTIF($A$2:A109,ChampQui),0)),\"\")","v":""},""]
[{"$f":"IFERROR(INDEX(ChampQui,MATCH(0,COUNTIF($A$2:A110,ChampQui),0)),\"\")","v":""},""]
[{"$f":"IFERROR(INDEX(ChampQui,MATCH(0,COUNTIF($A$2:A111,ChampQui),0)),\"\")","v":""},""]
[{"$f":"IFERROR(INDEX(ChampQui,MATCH(0,COUNTIF($A$2:A112,ChampQui),0)),\"\")","v":""},""]
[{"$f":"IFERROR(INDEX(ChampQui,MATCH(0,COUNTIF($A$2:A113,ChampQui),0)),\"\")","v":""},""]
[{"$f":"IFERROR(INDEX(ChampQui,MATCH(0,COUNTIF($A$2:A114,ChampQui),0)),\"\")","v":""},""]
[{"$f":"IFERROR(INDEX(ChampQui,MATCH(0,COUNTIF($A$2:A115,ChampQui),0)),\"\")","v":""},""]
[{"$f":"IFERROR(INDEX(ChampQui,MATCH(0,COUNTIF($A$2:A116,ChampQui),0)),\"\")","v":""},""]
[{"$f":"IFERROR(INDEX(ChampQui,MATCH(0,COUNTIF($A$2:A117,ChampQui),0)),\"\")","v":""},""]
[{"$f":"IFERROR(INDEX(ChampQui,MATCH(0,COUNTIF($A$2:A118,ChampQui),0)),\"\")","v":""},""]
[{"$f":"IFERROR(INDEX(ChampQui,MATCH(0,COUNTIF($A$2:A119,ChampQui),0)),\"\")","v":""},""]
[{"$f":"IFERROR(INDEX(ChampQui,MATCH(0,COUNTIF($A$2:A120,ChampQui),0)),\"\")","v":""},""]
[{"$f":"IFERROR(INDEX(ChampQui,MATCH(0,COUNTIF($A$2:A121,ChampQui),0)),\"\")","v":""},""]
[{"$f":"IFERROR(INDEX(ChampQui,MATCH(0,COUNTIF($A$2:A122,ChampQui),0)),\"\")","v":""},""]
[{"$f":"IFERROR(INDEX(ChampQui,MATCH(0,COUNTIF($A$2:A123,ChampQui),0)),\"\")","v":""},""]
[{"$f":"IFERROR(INDEX(ChampQui,MATCH(0,COUNTIF($A$2:A124,ChampQui),0)),\"\")","v":""},""]
[{"$f":"IFERROR(INDEX(ChampQui,MATCH(0,COUNTIF($A$2:A125,ChampQui),0)),\"\")","v":""},""]
[{"$f":"IFERROR(INDEX(ChampQui,MATCH(0,COUNTIF($A$2:A126,ChampQui),0)),\"\")","v":""},""]
[{"$f":"IFERROR(INDEX(ChampQui,MATCH(0,COUNTIF($A$2:A127,ChampQui),0)),\"\")","v":""},""]
[{"$f":"IFERROR(INDEX(ChampQui,MATCH(0,COUNTIF($A$2:A128,ChampQui),0)),\"\")","v":""},""]
[{"$f":"IFERROR(INDEX(ChampQui,MATCH(0,COUNTIF($A$2:A129,ChampQui),0)),\"\")","v":""},""]
[{"$f":"IFERROR(INDEX(ChampQui,MATCH(0,COUNTIF($A$2:A130,ChampQui),0)),\"\")","v":""},""]
[{"$f":"IFERROR(INDEX(ChampQui,MATCH(0,COUNTIF($A$2:A131,ChampQui),0)),\"\")","v":""},{"$f":"IF(A132=\"\",\"\",ROW())","v":""}]